Workbook

Sheet Start
A1: 1

Sheet Tab0
B2: Betriebsdaten
B4: Kostenbelege
B6: Finanzmittel
B8: Verwendungs-nachweis
B10: Auszahlungs-antrag

Sheet Tab1
P1: Kostengruppe | Q1: Ber. | R1: Ausgabengruppen | U1: Nr. | V1: Finanzen | X1: Num | Y1: AusGruppen | AA1: Num | AB1: Kreisstellen | AE1: Ausgabenkomp | AH1: keine Angabe
C2: Skonto% | D2: 1 | E2: 1 | F2: UST%;USt€ | M2: 11 | N2: 1 | O2: 11 | P2: GAK: Errichtung, Modernisierung | Q2: 1 | R2: Errichtung (GAK) | U2: 1 | V2: Zuschuss GAKG | W2: 1 | X2: 1 | Y2: GAK Landkauf, Grundstück | AA2: 1 | AB2: Aachen | AC2: VE Düren | AD2: 1 | AE2: =O2&" " &P2 -> 11 GAK: Errichtung, Modernisierung | AG2: Aachen | AH2: VE Düren
D3: 1 | E3: 1 | F3: 19 | M3: 21 | N3: 2 | O3: 21 | P3: GAK: Kauf Maschinen/Anlagen | Q3: 2 | R3: Maschinen Anlagen (GAK) | U3: 2 | V3: Zuschuss Organisationausgaben | W3: 2 | X3: 2 | Y3: GAK Erschließung | AA3: 2 | AB3: Borken | AC3: VE Borken | AD3: 2 | AE3: 21 GAK: Kauf Maschinen/Anlagen | AG3: Borken | AH3: VE Borken
D4: 2018 | E4: 2018 | M4: 31 | N4: 3 | O4: 31 | P4: GAK: Allg. Aufwand: Architekt | Q4: 3 | R4: Allg. Aufwand (GAK) | U4: 3 | V4: Zuschuss Ausstattung/Einrichtung | W4: 3 | X4: 3 | Y4: GAK Bauwerk / Konstruktion | AA4: 3 | AB4: Coesfeld | AC4: VE Coesfeld | AD4: 3 | AE4: 31 GAK: Allg. Aufwand: Architekt | AG4: Coesfeld | AH4: VE Coesfeld
D5: =DATE(D4,D3,D2) -> 2018-01-01 | E5: =DATE(E4,E3,E2) -> 2018-01-01 | M5: 32 | N5: 4 | O5: 32 | P5: GAK: Allg. Aufwand: Ingenieurl. | Q5: 3 | R5: Allg. Aufwand (GAK) | U5: 4 | V5: Zuschuss Marketingmaßnahmen | W5: 4 | X5: 4 | Y5: GAK Bauwerk / Techn. Anlagen | AA5: 4 | AB5: Düren | AC5: VE Düren | AD5: 4 | AE5: 32 GAK: Allg. Aufwand: Ingenieurl. | AG5: Düren | AH5: VE Düren
A6: =D22 -> 1 | D6: =D5 -> 2018-01-01 | E6: =E5 -> 2018-01-01 | G6: 0 | H6: 0 | I6: 0 | J6: 0 | K6: 0 | M6: 33 | N6: 5 | O6: 33 | P6: GAK: Allg. Aufwand: Beratung | Q6: 3 | R6: Allg. Aufwand (GAK) | U6: 5 | V6: Zuschuss Startbeihilfen 1. Jahr | W6: 5 | X6: 5 | Y6: GAK Außenanlagen | AA6: 5 | AB6: Euskirchen | AC6: VE Düren | AD6: 5 | AE6: 33 GAK: Allg. Aufwand: Beratung | AG6: Euskirchen | AH6: VE Düren
A7: Buchung | B7: Beleg | C7: DIN | D7: R-Datum | E7: Z-Datum | F7: Aussteller Zweck | G7: Ausgabe | H7: nicht-Skont. | I7: nzfBetr Netto | J7: anteilUSt | K7: Netto | M7: 34 | N7: 6 | O7: 34 | P7: GAK: Allg. Aufwand: Lizenzen | Q7: 3 | R7: Allg. Aufwand (GAK) | U7: 6 | V7: Zuschuss Startbeihilfen 2. Jahr | W7: 6 | X7: 6 | Y7: GAK Ausstattung | AA7: 6 | AB7: Gütersloh | AC7: VE Warendorf | AD7: 6 | AE7: 34 GAK: Allg. Aufwand: Lizenzen | AG7: Gütersloh | AH7: VE Warendorf
M8: 35 | N8: 7 | O8: 35 | P8: GAK: Allg. Aufw: Baunebenkosten | Q8: 3 | R8: Allg. Aufwand (GAK) | U8: 7 | V8: Zuschuss Startbeihilfen 3. Jahr | W8: 7 | X8: 7 | Y8: Nebenkosten | AA8: 7 | AB8: Heinsberg | AC8: VE Viersen | AD8: 7 | AE8: 35 GAK: Allg. Aufw: Baunebenkosten | AG8: Heinsberg | AH8: VE Viersen
B9: ="Betrieb: "& D10 &", "& D11&"; Nr. "&D12 -> Betrieb: , ; Nr. | M9: 41 | N9: 8 | O9: 41 | P9: Organisation-Beratung | Q9: 4 | R9: Organisation | U9: 8 | V9: Zuschuss Qualifizierungsmaßnahmen | W9: 8 | X9: 8 | Y9: Maschinen / Innenwirtschaft | AA9: 8 | AB9: Herford-Bielefeld | AC9: VE Lübbecke | AD9: 8 | AE9: 41 Organisation-Beratung | AG9: Herford-Bielefeld | AH9: VE Lübbecke
B10: Name | G10: 5. USt | H10: 0 | I10: =K6+J6 -> 0 | J10: föfä brutto | M10: 42 | N10: 9 | O10: 42 | P10: Organisation-Konzeption | Q10: 4 | R10: Organisation | U10: 9 | V10: Barmittel (Guthaben) | W10: 9 | X10: 9 | Y10: Maschinen /Außenwirtschaft | AA10: 9 | AB10: Hochsauerland | AC10: VE Meschede | AD10: 9 | AE10: 42 Organisation-Konzeption | AG10: Hochsauerland | AH10: VE Meschede
B11: Ort | M11: 43 | N11: 10 | O11: 43 | P11: Organisation-Geschäftsausgaben | Q11: 4 | R11: Organisation | U11: 10 | V11: Steuer-Erstattung | W11: 10 | X11: 10 | Y11: Viehzukauf | AA11: 10 | AB11: Höxter | AC11: VE Brakel | AD11: 10 | AE11: 43 Organisation-Geschäftsausgaben | AG11: Höxter | AH11: VE Brakel
B12: B.-Nr. | M12: 51 | N12: 11 | O12: 51 | P12: 1.J. Startbeihilfen (Löhne/Soz.Abg) | Q12: 5 | R12: Startbeihilfen 1. Jahr | U12: 11 | V12: Anderweitige Fördermittel | W12: 11 | X12: 11 | Y12: Ablösung Verbindlichkeiten | AA12: 11 | AB12: Kleve | AC12: VE Kleve | AD12: 11 | AE12: 51 1.J. Startbeihilfen (Löhne/Soz.Abg) | AG12: Kleve | AH12: VE Kleve
B13: Option: | D13: 66655665 | E13: 2 | F13: Auswahl der Optionen | M13: 52 | N13: 12 | O13: 52 | P13: 2.J. Startbeihilfen (Löhne/Soz.Abg) | Q13: 6 | R13: Startbeihilfen 2. Jahr | U13: 12 | V13: Kontokorrent | W13: 12 | X13: 12 | Y13: Finanzierungsnebenkosten | AA13: 12 | AB13: Lippe | AC13: VE Brakel | AD13: 12 | AE13: 52 2.J. Startbeihilfen (Löhne/Soz.Abg) | AG13: Lippe | AH13: VE Brakel
B14: Anschrift: | M14: 53 | N14: 13 | O14: 53 | P14: 3.J. Startbeihilfen (Löhne/Soz.Abg) | Q14: 7 | R14: Startbeihilfen 2. Jahr | U14: 13 | V14: Fremdkapital (Kredite) | W14: 13 | X14: 13 | Y14: Organisation, Konzept | AA14: 13 | AB14: Märkischer Kreis/Ennepe-Ruhr | AC14: VE Unna | AD14: 13 | AE14: 53 3.J. Startbeihilfen (Löhne/Soz.Abg) | AG14: Märkischer Kreis/Ennepe-Ruhr | AH14: VE Unna
B15: Bankverbindg | M15: 61 | N15: 14 | O15: 61 | P15: SachAusg. Errichtung/Ausst. | Q15: 8 | R15: Sachausgaben Einr/Ausst | U15: 14 | V15: Leistungen Dritter | W15: 14 | X15: 14 | Y15: Startbeihilfen | AA15: 14 | AB15: Mettmann | AC15: VE Lindlar | AD15: 14 | AE15: 61 SachAusg. Errichtung/Ausst. | AG15: Mettmann | AH15: VE Lindlar
B16: Buchung in | D16: 1 | F16: Euro | M16: 62 | N16: 15 | O16: 62 | P16: SachAusg. Marketing/Sonstiges | Q16: 9 | R16: Sachausgaben Marketing,So. | X16: 15 | Y16: Strategiekonzept Umsetzung | AA16: 15 | AB16: Minden-Lübbecke | AC16: VE Lübbecke | AD16: 15 | AE16: 62 SachAusg. Marketing/Sonstiges | AG16: Minden-Lübbecke | AH16: VE Lübbecke
M17: 71 | N17: 16 | O17: 71 | P17: Qualifizierungsmaßnahmen | Q17: 10 | R17: Bildungsmaßnahmen | X17: 16 | Y17: Qualifizierung | AA17: 16 | AB17: Münster | AC17: VE Warendorf | AD17: 16 | AE17: 71 Qualifizierungsmaßnahmen | AG17: Münster | AH17: VE Warendorf
B18: Belege | D18: 0 | M18: 99 | N18: 17 | O18: 99 | P18: nicht förderfähige Kosten | Q18: 11 | R18: Sonstiges | X18: 17 | Y18: Sonstige Kosten | AA18: 17 | AB18: Oberbergischer Kreis | AC18: VE Lindlar | AD18: 17 | AE18: 99 nicht förderfähige Kosten | AG18: Oberbergischer Kreis | AH18: VE Lindlar
B19: Lauf | D19: TRUE | AA19: 18 | AB19: Olpe | AC19: VE Meschede | AE19: =O19&" " &P19 ->  | AG19: Olpe | AH19: VE Meschede
B20: das_wars | D20: TRUE | N20: 51 | X20: 2 | Y20: =VLOOKUP(X20,AusGruppen,2,1) -> GAK Erschließung | AA20: 19 | AB20: Paderborn | AC20: VE Brakel | AG20: Paderborn | AH20: VE Brakel
B21: Splitten(1=ja) | D21: 7 | F21: 1= ja; 2=nein | N21: =VLOOKUP(N20,M2:N18,2,FALSE) -> 11 | AA21: 20 | AB21: Recklinghausen | AC21: VE Coesfeld | AG21: Recklinghausen | AH21: VE Coesfeld
B22: letzteZeile | D22: 1 | F22: Vor erster Buchung eine 1 eintragen | AA22: 21 | AB22: Rhein-Erft-Kreis | AC22: VE Köln-Auweiler | AG22: Rhein-Erft-Kreis | AH22: VE Köln-Auweiler
B23: Ganzer Betrag | D23: 0 | V23: in U16 war: | AA23: 22 | AB23: Rheinisch-Bergischer-Kreis | AC23: VE Lindlar | AG23: Rheinisch-Bergischer-Kreis | AH23: VE Lindlar
B24: Restbetrag | D24: 0 | F24: 10000 | Q24: Ber. | R24: Ausgabengruppen | V24: =SVERWEIS(V16;V2:W15;2;0) | AA24: 23 | AB24: Rhein-Kreis Neuss | AC24: VE Köln-Auweiler | AG24: Rhein-Kreis Neuss | AH24: VE Köln-Auweiler
B25: Splitt_erlaubt | D25: 2 | F25: 1= ja; 2=nein | Q25: 1 | R25: (GAK) Errichtung, Modernisierung | S25: 1 | AA25: 24 | AB25: Rhein-Sieg-Kreis | AC25: VE Köln-Auweiler | AG25: Rhein-Sieg-Kreis | AH25: VE Köln-Auweiler
B26: zuviel verteilt | D26: 2 | F26: 1= ja; 2=nein | Q26: 2 | R26: (GAK) Maschinen/Anlagen | S26: 2 | AA26: 25 | AB26: Ruhr-Lippe | AC26: VE Unna | AG26: Ruhr-Lippe | AH26: VE Unna
B27: KG DIN 276 | D27: 1 | F27: =INDEX(Ausgaben,D27,2) -> 11 | G27: =VLOOKUP(D27,Ausgaben,3) -> GAK: Errichtung, Modernisierung | Q27: 3 | R27: (GAK) Allg. Aufwand | S27: 3 | AA27: 26 | AB27: Siegen-Wittgenstein | AC27: VE Meschede | AE27: =O27&" " &P27 ->  | AG27: Siegen-Wittgenstein | AH27: VE Meschede
B28: Beleg | D28: 1 | I28: Zwischenspeicher aus Combobox | Q28: 4 | R28: Organisationsausgaben | S28: 4 | AA28: 27 | AB28: Soest | AC28: VE Soest | AG28: Soest | AH28: VE Soest
B29: Art der Mittel | D29: =VLOOKUP(I29,V2:W15,2,0) -> 1 | G29: =INDEX(Einnahmen,D29,2) -> Zuschuss GAKG | I29: Zuschuss GAKG | Q29: 5 | R29: 1. Jahr Startbeihilfen | S29: 5 | AA29: 28 | AB29: Steinfurt | AC29: VE Steinfurt | AG29: Steinfurt | AH29: VE Steinfurt
B30: Betrag | D30: 0 | Q30: 6 | R30: 2. Jahr Startbeihilfen | S30: 6 | AA30: 29 | AB30: Viersen | AC30: VE Viersen | AG30: Viersen | AH30: VE Viersen
B31: Zugangsdatum | D31: =F31 -> 2018-01-01 | F31: =DATE(I31,H31,G31) -> 2018-01-01 | G31: 1 | H31: 1 | I31: 2018 | Q31: 7 | R31: 3. Jahr Startbeihilfen | S31: 7 | AA31: 30 | AB31: Warendorf | AC31: VE Warendorf | AG31: Warendorf | AH31: VE Warendorf
B32: letzteBelegZ | D32: 1 | F32: Vor erster Buchung eine 1 eintragen | Q32: 8 | R32: Einrichtung/Ausstattung (Sachausg.) | S32: 8 | AA32: 31 | AB32: Wesel | AC32: VE Wesel | AG32: Wesel | AH32: VE Wesel
B33: nichtmehr | D33: FALSE | Q33: 9 | R33: Marketing, Sonst. (Sachausg.) | S33: 9
B34: Kostenplan | D34: 19 | E34: 0 | F34: 0 | G34: 0 | H34: =Q37 -> 1 | Q34: 10 | R34: Qualifizierungsmaßnahmen | S34: 10
B35: Gruppe | D35: =VALUE(F35) -> 1 | E35: 300 | F35: =VLOOKUP(F27,Kontengruppen,3,2) -> 1 | I35: ="Zuletzt: " & R37 -> Zuletzt: (GAK) Errichtung, Modernisierung | Q35: 11 | R35: Sonstiges | S35: 11
F36: SVERWEIS(F27;Kontengruppen;3;2)
A37: KOSTEN | F37: =ROUND(E34*D34/(100+D34),2) -> 0 | G37: =E34-F37 -> 0 | Q37: =VLOOKUP(R37,R25:S35,2,0) -> 1 | R37: (GAK) Errichtung, Modernisierung | AE37: =O37&" " &P37 -> 
B38: KGrup | D38: 1 | E38: =VLOOKUP(D38,AusGruppen,2,TRUE) -> GAK Landkauf, Grundstück | G38: 21
A40: Nr. Abrechngsj | C40: 1 | D40: 2 | E40: VE Rheinkreise | AE40: =O47&" " &P47 -> 
A41: Nr AuszAntrag | C41: 1
A42: Nr. Grundantrag | C42: 1
A43: Grundantragsjahr | C43: 1
A44: FINANZPLAN
C45: Gruppe | D45: Betrag | E45: Text
C46: =U16 -> 0 | D46: 900 | E46: =V16 -> 0
E47: ="zuletzt gespeichert: " & E46 & ": "&D46 -> zuletzt gespeichert: 0: 900
B56: Testbereich
A57: 1 | B57: Zahlung | D57: 1500
A58: 2 | B58: nichtSk | D58: 0
A59: 3 | B59: nzfB | D59: 0
A60: 4 | B60: davUSt | D60: 0
A61: 5 | B61: USt FF | D61: 239.5
A62: 6 | B62: zfB | D62: 1260.5
B63: USAtz | D63: 0.8403361345
I72: =1190/100 -> 11.9

Sheet Tab2
A1: Buchung | B1: Beleg | C1: Gruppe | D1: Rechnungsdatum | E1: Zahlungsdatum | F1: Firma | G1: Verwendungszweck | H1: Zahlung | I1: nicht-real.Skonto | J1: nicht ff. Ausgabe incl anteil. USt | K1: ff. Brutto | L1: anteil USt | M1: Betragnetto | N1: Antr

Sheet Tab3
A1: Betrieb: | D1: =" "&'Tab1'!D10&" in "&'Tab1'!D11 -> in | H1: ="Unternehmer-Nr.: " &'Tab1'!D12 -> Unternehmer-Nr.:
N2: Ausz.-Antrag Nr.
A7: Buchung | H7: Ausgaben in Euro
A8: Lfd. Nummer | B8: Beleg-Nr. | C8: KG | D8: Rechnungs-datum | E8: Zahlungs-datum | F8: Firma | G8: Gegenstand | H8: Zahlung | I8: nicht realisierte Skonti | J8: nicht förderfähige Beträge | K8: förderfähig Brutto | L8: USt | M8: zuwendungs-fähiger Betrag | O8: Bearbeitungsspalte der Kreisstelle
A9: 1 | B9: 2 | C9: 3 | D9: 4 | E9: 5 | F9: 6 | G9: 7 | H9: 8 | I9: 9 | J9: 10 | K9: 11 | L9: 12 | M9: 13 | N9: 14 | O9: 15

Sheet Tab4
A1: lfd.Nr | B1: Beleg | C1: Datum | D1: Art | E1: Betrag | F1: Art der Mittel | G1: Ausz-Nr

Sheet Tab5
A3: Betrieb: | C3: =" "&'Tab1'!D10&" in "&'Tab1'!D11 -> in
A4: ="Unternehmer-Nr.: " &'Tab1'!D12 -> Unternehmer-Nr.:
B5: 99
A6: Buchung Nr. | B6: Beleg Nr. | C6: Datum | D6: Art | E6: Betrag | F6: Art | G6: Ausz.-Antrag Nr. | H6: Bearbeitungsspalte
C7: des | E7: in | F7: der | H7: der
C8: Zugangs | D8: Code | E8: Euro | F8: Finanzierungsmittel | H8: Kreisstelle
A9: 1 | B9: 2 | C9: 3 | D9: 4 | E9: 5 | F9: 6 | G9: 7 | H9: 8

Sheet Tab6
A1: Ausgaben | C1: alle Angaben in | E1: Euro | H1: Bewilligter Kostenplan
A2: Num | B2: Art | C2: Ges.Betrag | D2: nicht-ff.B. | E2: ff.Betrag | F2: USt | G2: NettoBetrag | H2: Betrag | I2: nff u.USt | J2: ffBetrag
A3: 1 | B3: Errichtung (GAK) | C3: 0 | D3: 0 | E3: 0 | F3: 0 | G3: 0 | H3: 0 | I3: 0 | J3: 0
A4: 2 | B4: Maschinen Anlagen (GAK) | C4: 0 | D4: 0 | E4: 0 | F4: 0 | G4: 0 | H4: 0 | I4: 0 | J4: 0
A5: 3 | B5: Allg. Aufwand (GAK) | C5: 0 | D5: 0 | E5: 0 | F5: 0 | G5: 0 | H5: 0 | I5: 0 | J5: 0
A6: 4 | B6: Organisation | C6: 0 | D6: 0 | E6: 0 | F6: 0 | G6: 0 | H6: 0 | I6: 0 | J6: 0
A7: 5 | B7: Startbeihilfen 1. Jahr | C7: 0 | D7: 0 | E7: 0 | F7: 0 | G7: 0 | H7: 0 | I7: 0 | J7: 0
A8: 6 | B8: Startbeihilfen 2. Jahr | C8: 0 | D8: 0 | E8: 0 | F8: 0 | G8: 0 | H8: 0 | I8: 0 | J8: 0
A9: 7 | B9: Startbeihilfen 3. Jahr | C9: 0 | D9: 0 | E9: 0 | F9: 0 | G9: 0 | H9: 0 | I9: 0 | J9: 0
A10: 8 | B10: Sachausgaben Einr/Ausst | C10: 0 | D10: 0 | E10: 0 | F10: 0 | G10: 0 | H10: 0 | I10: 0 | J10: 0
A11: 9 | B11: Sachausgaben Marketing,So. | C11: 0 | D11: 0 | E11: 0 | F11: 0 | G11: 0 | H11: 0 | I11: 0 | J11: 0
A12: 10 | B12: Bildungsmaßnahmen | C12: 0 | D12: 0 | E12: 0 | F12: 0 | G12: 0 | H12: 0 | I12: 0 | J12: 0
A13: 11 | B13: Sonstiges | C13: 0 | D13: 0 | E13: 0 | F13: 0 | G13: 0 | H13: 0 | I13: 0 | J13: 0
B14: Summe | C14: =SUM(C3:C13) -> 0 | D14: =SUM(D3:D13) -> 0 | E14: 0 | F14: 0 | G14: 0 | H14: 0 | I14: 0 | J14: 0
A19: Erhaltene Finanzmittel kommen hier aus Abrechung Finanzmittel (Button 10) | E19: Betriebsdaten
A20: Num | B20: Art der Einnahmen | C20: Betrag | E20: BetriebsNr | F20: 0
A21: 1 | B21: Zuschuss aus GAKG | C21: 0 | E21: Name | F21: 0
A22: 2 | B22: Zuschuss für Organisationsausgaben | C22: 0 | E22: Vorname | F22: 0
A23: 3 | B23: Zuschuss für Ausstattung/Einrichtung | C23: 0 | E23: Anschrift | F23: 0
A24: 4 | B24: Zuschuss für Marketingmaßnahmen | C24: 0 | E24: PLZ | F24: 0
A25: 5 | B25: Startbeihilfe für 1. Durchführungs-Jahr | C25: 0 | E25: Ort | F25: 0
A26: 6 | B26: Startbeihilfe für 2. Durchführungs-Jahr | C26: 0 | F26: 0
A27: 7 | B27: Startbeihilfe für 3. Durchführungs-Jahr | C27: 0 | F27: 0
A28: 8 | B28: Zuschuss für Qualifizierungssmaßnahmen | C28: 0 | F28: 0
A29: 9 | B29: Barmittel (Guthaben) | C29: 0 | E29: =F22&" "&F21&" UnternNr.: "&F20 -> 0 0 UnternNr.: 0
A30: 10 | B30: USt-Erstattung | C30: 0 | D30: Ergänzung: | E30: Gesamt-VN | F30: 0
A31: 11 | B31: Anderweitige Fördermittel | C31: 0 | E31: Zwischen-VN | F31: FALSE
A32: 11 | B32: Kontokorrent | C32: 0 | E32: Belege bei:
A33: 12 | B33: Fremdkapital (Kredite) | C33: 0 | E33: Datum des VN: | F33: 00:00:00
A34: 13 | B34: Leistungen Dritter | C34: 0 | E34: Maßn. abgeschlossen | F34: 0
B35: SUMME | C35: =SUM(C21:C34) -> 0 | E35: Abgeschlossen am | F35: 00:00:00
E36: Vorlage VN | F36: 00:00:00
D38: 1 | E38: =VLOOKUP(D38,_Num2,2,TRUE) -> Errichtung (GAK)
D39: Daten aus ZuBeFinanzierung Geplante Finanzmittel aus Erfassung ZuwendB (Button3)
B40: Kreisstellen | D40: Zuschuss aus GAKG | E40: 0 | F40: Daten aus ZuwB-2. Seite
A41: 1 | B41: Aachen | D41: Zuschuss für Organisationsausgaben | E41: 0 | F41: Datum ZB | G41: 00:00:00
A42: 2 | B42: Düren | D42: Zuschuss für Ausstattung/Einrichtung | E42: 0 | F42: AZ des ZB | G42: 0
A43: 3 | B43: Erftkreis | D43: Zuschuss für Marketingmaßnahmen | E43: 0 | F43: Dfzeit von | G43: 00:00:00
A44: 4 | B44: Euskirchen | D44: Startbeihilfe für 1. Durchführungs-Jahr | E44: 0 | F44: Dfzeit bis | G44: 00:00:00
A45: 5 | B45: Heinsberg | D45: Startbeihilfe für 2. Durchführungs-Jahr | E45: 0 | F45: BewZeit von | G45: 00:00:00
A46: 6 | B46: Kleve | D46: Startbeihilfe für 3. Durchführungs-Jahr | E46: 0 | F46: BewZeit bis | G46: 00:00:00
A47: 7 | B47: Mettmann | D47: Zuschuss für Qualifizierungssmaßnahmen | E47: 0
A48: 8 | B48: Neuss | D48: Barmittel (Guthaben) | E48: 0 | F48: VorzeitB
A49: 9 | B49: Oberberg. Kreis | D49: USt-Erstattung | E49: 0
A50: 10 | B50: Rhein.-Berg. Kreis | D50: Anderweitige Fördermittel | E50: 0
A51: 11 | B51: Rhein-Sieg-Kreis | D51: Kontokorrent | E51: 0
A52: 12 | B52: Viersen | D52: Fremdkapital (Kredite) | E52: 0
A53: 13 | B53: Wesel | D53: Leistungen Dritter | E53: 0
A54: IST: | B54: Siegen-Wittgenstein | C54: 26 | D54: Summe Finanzmittel | E54: =SUM(E40:E53) -> 0
A57: Auszahlungsantrag | C57: bewilligt | D57: gezahlt | E57: beantragt | F57: Diff
B58: ZuschussGAK | C58: 0 | D58: 0 | E58: 0 | F58: 0
B59: Z OrganisationKonzept | C59: 0 | D59: 0 | E59: 0 | F59: 0
B60: Z.Ausstattung/Einrichtung | C60: 0 | D60: 0 | E60: 0 | F60: 0
B61: Z Marketing Sonstiges | C61: 0 | D61: 36526 | E61: 0 | F61: 0
B62: Startbeihilfe 1. Jahr | C62: 0 | D62: 0 | E62: 0 | F62: 0
B63: Startbeihilfe 2. Jahr | C63: 0 | D63: 0 | E63: 0 | F63: 0
B64: Startbeihilfe 3. Jahr | C64: 0 | D64: 0 | E64: 0 | F64: 0
B65: Z Qualifizierung | C65: 0 | D65: 0 | E65: 0 | F65: 0
B66: Summe | C66: =SUM(C58:C65) -> 0 | D66: =SUM(D58:D65) -> 36526 | E66: =SUM(E58:E65) -> 0 | F66: =SUM(F58:F65) -> 0
A68: Vorher beantragt | C68: bewilligt | D68: gezahlt | E68: beantragt | F68: Diff
B69: ZuschussGAK | C69: =C58 -> 0 | D69: 0 | E69: 0
B70: Z OrganisationKonzept | C70: =C59 -> 0 | D70: 0 | E70: 0
B71: Z.Ausstattung/Einrichtung | C71: 0 | D71: 0 | E71: 0
B72: Z Marketing Sonstiges | C72: 0 | D72: 0 | E72: 0
B73: Startbeihilfe 1. Jahr | C73: 0 | D73: 0 | E73: 0
B74: Startbeihilfe 2. Jahr | C74: 0 | D74: 0 | E74: 0
B75: Startbeihilfe 3. Jahr | C75: 0 | D75: 0 | E75: 0
B76: Z Qualifizierung | C76: 0 | D76: 0 | E76: 0
C77: =SUM(C69:C76) -> 0 | D77: =SUM(D69:D76) -> 0 | E77: =SUM(E69:E76) -> 0 | F77: =SUM(F69:F76) -> 0

Sheet VNS1
B3: Förderung nach den Richtlinien über die Gewährung von Zuwendungen für die Diversifizierung der Tätigkeiten im landwirtschaftlichen und landwirtschaftsnahen Bereich
H8: Eingangsstempel
B9: An den
B10: Direktor der Landwirtschaftskammer NRW
B11: als Landesbeauftragter
B12: über den Geschäftsführer der Kreisstelle
B13: ='Tab1'!E40 -> VE Rheinkreise | D13: =VLOOKUP(B13,Liste!B2:C4,2,1) -> Gartenstr. 11, 50765 Köln
A15: 1. Zuwendungsempfänger
B16: Name | F16: Vorname | I16: Unternehmer-Nr.
B17: ='Tab1'!D10 -> 0 | F17: =IF('Tab1'!F10="","",'Tab1'!F10) ->  | I17: ='Tab1'!D12 -> 
B18: Straße | E18: PLZ | F18: Ort
B19: ='Tab1'!D14 -> 0 | E19: ='Tab1'!F11 -> 0 | F19: ='Tab1'!D11 -> 0
B21: Bevollmächtigter
B22: =AusAn!C6 -> 0
B23: Bei diesem Verwendungsnachweis handelt es sich um den
B24: =IF('Tab6'!F30,"Schlussverwendungsnachweis","Zwischenverwendungsnachweis") -> Zwischenverwendungsnachweis | F24: TRUE | G24: ="Vorlagetermin Schluß-VN: " -> Vorlagetermin Schluß-VN: | I24: ='Tab6'!F36 -> 00:00:00
F25: FALSE
B30: Zuwendungsbescheid vom | D30: ='Tab6'!G41 -> 00:00:00 | E30: Durchführungszeitraum von.. bis.. | H30: ='Tab6'!G43 -> 00:00:00 | I30: ='Tab6'!G44 -> 00:00:00
B31: Aktenzeichen | C31: ='Tab6'!G42 -> 0 | E31: Bewilligungszeitraum von.. bis.. | H31: ='Tab6'!G45 -> 00:00:00 | I31: ='Tab6'!G46 -> 00:00:00
B32: Die Zuwendung wurde in folgender Höhe bewilligt: | G32: vorzeitiger Beginn zugelassen | I32: =IF(ISBLANK('Tab6'!G48),"nein",'Tab6'!G48) -> nein
B33: Zuschuss GAK | C33: Zuschuss Organisation, Konzeption | D33: Zuschuss Ausstattung, Einrichtung | E33: Zuschuss Marketing, Sonst. Kosten | F33: Startbeihilfen | H33: Qualifizie-rungsmaß-nahmen | I33: Summe
B34: ='VNS2'!E5 -> 0 | C34: ='VNS2'!E6 -> 0 | D34: ='VNS2'!E7 -> 0 | E34: ='VNS2'!E8 -> 0 | F34: 1.J. | G34: ='VNS2'!E9 -> 0 | H34: ='VNS2'!E12 -> 0 | I34: =SUM(B34:E34,G34:G36,H34) -> 0
F35: 2.J. | G35: ='VNS2'!E10 -> 0
F36: 3.J. | G36: ='VNS2'!E11 -> 0
A37: 2. Sachbericht
A38: (Darstellung der durchgeführten Maßnahme, u.a. Beginn, bisheriger Verlauf, Abschluss, Erfüllung des Plans, Abweichungen, Verwendung der Zuwendung - auch anderer Förderprogramme, Finanzierung von Mehrausgaben, Erfüllung Auflagen, Erfolg/Erfüllung Zuwendungszweck, Liefertermin Maschinen/Geräte/Anlagen, Termin Bauabnahme u.s.w., wenn erforderlich, gesondertes Blatt beifügen.)
B40: Hier Text einfügen
B50: Ist die Maßnahme ist abgeschlossen ? | E50: =IF('Tab6'!F34,"JA","NEIN") -> NEIN | G50: seit: | H50: =IF(E50="JA",'Tab6'!F35," ") -> 

Sheet VNS2
B2: 3. Zahlenmäßiger Nachweis der Finanzierungsmittel
B3: 0 | C3: alle Angaben in Euro
C4: Einnahmen | E4: laut Zuwendungsbescheid | G4: laut Abrechnung
C5: 1. | D5: Zuschuss aus GAK-Förderung | E5: ='Tab6'!E40 -> 0 | G5: ='Tab6'!C21 -> 0
C6: 2. | D6: Zuschuss für Organisation, Konzeption | E6: ='Tab6'!E41 -> 0 | G6: ='Tab6'!C22 -> 0
C7: 3. | D7: Zuschuss für Ausstattung, Einrichtung | E7: ='Tab6'!E42 -> 0 | G7: ='Tab6'!C23 -> 0
C8: 4. | D8: Zuschuss für Marketing und Sonstiges | E8: ='Tab6'!E43 -> 0 | G8: ='Tab6'!C24 -> 0
C9: 5. | D9: Zuschuss für Startbeihilfe 1. Jahr | E9: ='Tab6'!E44 -> 0 | G9: ='Tab6'!C25 -> 0
C10: 6. | D10: Zuschuss für Startbeihilfe 2. Jahr | E10: ='Tab6'!E45 -> 0 | G10: ='Tab6'!C26 -> 0
C11: 7. | D11: Zuschuss für Startbeihilfe 3. Jahr | E11: ='Tab6'!E46 -> 0 | G11: ='Tab6'!C27 -> 0
C12: 8. | D12: Zuschuss zu Qualifizierungsmaßnahmen | E12: ='Tab6'!E47 -> 0 | G12: ='Tab6'!C28 -> 0
D13: Zuschüsse zusammen | E13: =SUM(E5:E12) -> 0 | G13: =SUM(G5:G12) -> 0
C14: 9. | D14: Bare Eigenmittel (Guthaben) | E14: ='Tab6'!E48 -> 0 | G14: ='Tab6'!C29 -> 0
C15: 10. | D15: USt-Erstattung | E15: ='Tab6'!E49 -> 0 | G15: ='Tab6'!C30 -> 0
C16: 11. | D16: Anderweitige Fördermittel | E16: ='Tab6'!E50 -> 0 | G16: ='Tab6'!C31 -> 0
C17: 12. | D17: Kontokorrent | E17: ='Tab6'!E51 -> 0 | G17: ='Tab6'!C32 -> 0
C18: 13. | D18: Fremdkapital (Kredite) | E18: ='Tab6'!E52 -> 0 | G18: ='Tab6'!C33 -> 0
C19: 14. | D19: Leistungen Dritter | E19: ='Tab6'!E53 -> 0 | G19: ='Tab6'!C34 -> 0
D20: Summe | E20: =SUM(E13:E19) -> 0 | G20: =SUM(G13:G19) -> 0
B22: 4. Bestätigungen des/der Antragsteller/in
C23: Es wird bestätigt, dass
C24: - die allgemeinen und besonderen Nebenbestimmungen des Zuwendungsbescheides beachtet wurden
C25: - die Ausgaben notwendig waren, wirtschaftlich und sparsam verfahren wurde und die Angaben
C26: im Verwendungsnachweis mit den Belegen übereinstimmen.
C27: - die vorgelegten Online-Belege einmalig und ausschließlich für diese Maßnahme eingereicht wurden.
C28: - die Inventarisierung der mit der Zuwendung beschafften Gegenstände vorgenommen wurde.
C30: Die Belege werden in einer Belegliste zusammengefasst dargestellt.
C32: Die Belege werden aufbewahrt bei: | E32: ='Tab6'!F32 -> 0
C38: ='Tab6'!F25 &", " -> 0,
C39: ='Tab6'!F33 -> 00:00:00
C40: Ort, Datum | E40: Unterschrift/en
B45: 5. Bestätigung des Betreuers/Beraters
C46: aktuelle Betreuung durch: | E46: ohne Betreuer
C47: Das Vorhaben ist unter meiner Mitwirkung durchgeführt worden. Ich bestätige den vorstehenden
C48: Verwendungsnachweis und die Erklärungen des Zuwendungsempfängers.
C52: Ort, Datum | E52: Unterschrift

Sheet VNS3
B3: 6. Prüfungsvermerk des Geschäftsführers der Kreisstelle
B5: Der Verwendungsnachweis wurde geprüft
C7: nach Aktenlage
C9: nach Aktenlage und örtlicher Besichtigung
B10: Ergebnis
C11: Der Verwendungsnachweis entspricht den im Zuwendungsbescheid einschl. der in den Neben-
C12: bestimmungen festgelegten Anforderungen. Die Zuwendung ist zweckentsprechend verwendet
C13: worden.
C15: Der Verwendungsnachweis ist vollständig (einschl. Sachbericht, Originalrechnungen,
C16: Zahlungsbeweisen und Auftragsunterlagen z.B. Belege zur Auftragsvergabe wie Auftrags-
C17: bestätigung oder Vertrag, Arbeitsverträge mit Tätigkeitsbeschreibung, Statistisches
C18: Erhebungsblatt Bruttoarbeitsplätze, Seminarprogramm und Teilnehmerbescheinigung
C19: bei Qualifizierungsmaßnahme, Angaben zum Beihilfewert anderer Förderungen, Sozial-
C20: versicherungsnachweis, Angebotsvergleichsblatt, Vergleichsangebote, Kreditverträge,
C21: bei genehmigungspflichtigen Bauvorhaben Bericht zur Bauzustandsbesichtigung, ersatz-
C22: weise die ‚Anzeige der Baufertigstellung’, Inventarverzeichnis, Gewerbean-
C23: meldung bei Kleinstunternehmen).
C25: Die Prüfung ergab keine Beanstandungen. Die Angaben des Zuwendungsempfängers
C26: werden bestätigt. Entgegenstehende Tatsachen sind nicht bekannt.
C27: Der Verwendungsnachweis wird an die Bewilligungsstelle übersandt.
C29: Die Prüfung ergab folgende Beanstandungen: (Korrekturen zu einzelnen Belegen sind in der
C30: Bearbeitungsspalte ausgewiesen).
C35: Der Auszahlungsbetrag muss aufgrund der Beanstandungen gekürzt werden.
C38: Ort, Datum | G38: Name und Unterschrift des Geschäftsführers der Kreisstelle
G39: der Landwirtschaftskammer oder seines Beauftragten
B42: 7. Ergebnis der Prüfung durch die Bewilligungsstelle
B44: Der | D44: =IF('Tab6'!F30=TRUE,"Schlussverwendungsnachweis","Zwischenverwendungsnachweis") -> Zwischenverwendungsnachweis | H44: wurde anhand der vorliegenden Unterlagen
B45: geprüft.
B47: Es ergaben sich | F47: keine Beanstandungen,
F49: die nachstehenden Beanstandungen:
C53: Ort, Datum | G53: Unterschrift des Bearbeiters

Sheet VNS4
B2: Kosten der Diversifizierungsmaßnahme | G2: Kosten bis Durchf.-Jahr | I2: =AusAn!H17 -> 1 | K2: Anlage A
B3: 2. Ausgabengliederung | E3: alle Angaben in | F3: Euro | K3: Prüfung Kreisstelle
D4: 2.1 laut Konzept und Antrag | G4: 2.2 Tatsächlich entstandene Ausgaben
B5: Ausgabenbereich | D5: Investitionsbetrag (Brutto einschl. Eigenleistung) | E5: USt und nicht förderfähige Kosten | F5: förderfähiger Betrag | G5: Investitionsbetrag (Brutto einschl. Eigenleistung) | H5: USt und nicht förderfähige Kosten | I5: förderfähiger Betrag | K5: geprüft und anerkannt
D8: Erfassungsdialog | G8: aus Abrechnung
B9: Errichtung (GAK) | C9: 1 | D9: ='Tab6'!H3 -> 0 | E9: ='Tab6'!I3 -> 0 | F9: ='Tab6'!J3 -> 0 | G9: ='Tab6'!C3 -> 0 | H9: ='Tab6'!D3+'Tab6'!F3 -> 0 | I9: ='Tab6'!G3 -> 0
B10: Maschinen, Anlagen (GAK) | C10: 2 | D10: ='Tab6'!H4 -> 0 | E10: ='Tab6'!I4 -> 0 | F10: ='Tab6'!J4 -> 0 | G10: ='Tab6'!C4 -> 0 | H10: ='Tab6'!D4+'Tab6'!F4 -> 0 | I10: ='Tab6'!G4 -> 0
B11: Allg. Aufwand (GAK) | C11: 3 | D11: ='Tab6'!H5 -> 0 | E11: ='Tab6'!I5 -> 0 | F11: ='Tab6'!J5 -> 0 | G11: ='Tab6'!C5 -> 0 | H11: ='Tab6'!D5+'Tab6'!F5 -> 0 | I11: ='Tab6'!G5 -> 0
B12: Organisation | C12: 4 | D12: ='Tab6'!H6 -> 0 | E12: ='Tab6'!I6 -> 0 | F12: ='Tab6'!J6 -> 0 | G12: ='Tab6'!C6 -> 0 | H12: ='Tab6'!D6+'Tab6'!F6 -> 0 | I12: ='Tab6'!G6 -> 0
B13: 1. J. Löhne, Sozialabg. | C13: 5 | D13: ='Tab6'!H7 -> 0 | E13: ='Tab6'!I7 -> 0 | F13: ='Tab6'!J7 -> 0 | G13: ='Tab6'!C7 -> 0 | H13: ='Tab6'!D7+'Tab6'!F7 -> 0 | I13: ='Tab6'!G7 -> 0
B14: 2. J. Löhne, Sozialabg. | C14: 6 | D14: ='Tab6'!H8 -> 0 | E14: ='Tab6'!I8 -> 0 | F14: ='Tab6'!J8 -> 0 | G14: ='Tab6'!C8 -> 0 | H14: ='Tab6'!D8+'Tab6'!F8 -> 0 | I14: ='Tab6'!G8 -> 0
B15: 3. J. Löhne, Sozialabg. | C15: 7 | D15: ='Tab6'!H9 -> 0 | E15: ='Tab6'!I9 -> 0 | F15: ='Tab6'!J9 -> 0 | G15: ='Tab6'!C9 -> 0 | H15: ='Tab6'!D9+'Tab6'!F9 -> 0 | I15: ='Tab6'!G9 -> 0
B16: Einrichtg/Ausst - Sachausgaben | C16: 8 | D16: ='Tab6'!H10 -> 0 | E16: ='Tab6'!I10 -> 0 | F16: ='Tab6'!J10 -> 0 | G16: ='Tab6'!C10 -> 0 | H16: ='Tab6'!D10+'Tab6'!F10 -> 0 | I16: ='Tab6'!G10 -> 0
B17: Marketing, Sost. Sachausgaben | C17: 9 | D17: ='Tab6'!H11 -> 0 | E17: ='Tab6'!I11 -> 0 | F17: ='Tab6'!J11 -> 0 | G17: ='Tab6'!C11 -> 0 | H17: ='Tab6'!D11+'Tab6'!F11 -> 0 | I17: ='Tab6'!G11 -> 0
B18: Qualifizierungsmaßnahmen | C18: 10 | D18: ='Tab6'!H12 -> 0 | E18: ='Tab6'!I12 -> 0 | F18: ='Tab6'!J12 -> 0 | G18: ='Tab6'!C12 -> 0 | H18: ='Tab6'!D12+'Tab6'!F12 -> 0 | I18: ='Tab6'!G12 -> 0
B19: Sonstiges | C19: 11 | D19: ='Tab6'!H13 -> 0 | E19: ='Tab6'!I13 -> 0 | F19: ='Tab6'!J13 -> 0 | G19: ='Tab6'!C13 -> 0 | H19: ='Tab6'!D13+'Tab6'!F13 -> 0 | I19: ='Tab6'!G13 -> 0
B21: Summe | D21: =SUM(D3:D19) -> 0 | E21: 0 | F21: 0 | G21: 0 | H21: 0 | I21: 0
B23: Prüfung Allg. Aufwand (max 12 %) | D23: =F9+F10 -> 0 | F23: =IF(F24<0,"um …€ zu hoch","o.k.") -> o.k. | G23: =I9+I10 -> 0 | I23: =IF(I24<0,"um …€ zu hoch","o.k.") -> o.k.
B24: Überschreitung | F24: =IF(D25>F11,0,D25-F11) -> 0 | I24: =IF(G25>I11,0,G25-I11) -> 0
B25: zulässige Höhe Allg. Aufwand | D25: =ROUNDDOWN((D23*12%),2) -> 0 | G25: =ROUNDDOWN((G23*12 %),2) -> 0
B27: Angaben zu 2.1 aus Button2

Sheet AusAn
B2: Antragsteller/in; Absender:
C3: ='Tab1'!F10 &" "&'Tab1'!D10 -> 
C4: ='Tab1'!D14 -> 0
C5: ='Tab1'!F11 &" "&'Tab1'!D11 -> 
B6: z.H. | C6: 0
B8: An den Direktor der Landwirtschaftskammer NRW
B9: als Landesbeauftragter
B10: EU-Zahlstelle, Förderung
H11: Eingangsstempel
B14: über | C14: ='Tab1'!E40 -> VE Rheinkreise | F14: =VLOOKUP(C14,Liste!B2:C4,2) -> Gartenstr. 11, 50765 Köln
B16: Gewährung von Zuwendungen nach dem Programm zur Förderung der Diversifizierung (DIV)
B17: Antrag auf Auszahlung der Zuschüsse | F17: - Auszahlung Nr. | H17: ='Tab1'!C41 -> 1
B18: Aktenzeichen: | D18: ='Tab6'!G42 -> 0
B19: Grundlage für diesen Antrag ist der beigefügte | F19: =IF('Tab6'!F30,"Schlussverwendungsnachweis","Zwischenverwendungsnachweis") -> Zwischenverwendungsnachweis
G20: 2000-01-01
B21: Mit Bezug auf die im beigefügten Verwendungsnachweis angegebenen Ausgaben beantrage ich
B22: hiermit folgende Auszahlung:
B24: Zuschuss für | F24: alle Angaben in Euro
I25: Feststellung der
G26: bereits | H26: beantragte | I26: Kreisstelle
F27: bewilligt: | G27: ausgezahlt: | H27: Auszahlung
B28: ~ Investitionen nach GAKG | F28: ='Tab6'!E40 -> 0 | G28: ='Tab6'!C21 -> 0 | H28: 0
B29: ~ Organisationausgaben | F29: ='Tab6'!E41 -> 0 | G29: ='Tab6'!C22 -> 0 | H29: 0
B30: ~ Einrichtung und Ausstattung | F30: ='Tab6'!E42 -> 0 | G30: ='Tab6'!C23 -> 0 | H30: 0
B31: ~ Marketingmaßnahmen | F31: ='Tab6'!E43 -> 0 | G31: ='Tab6'!C24 -> 0 | H31: 0
B32: ~ Startbeihilfen für 1. Jahr | F32: ='Tab6'!E44 -> 0 | G32: ='Tab6'!C25 -> 0 | H32: 0
B33: ~ Startbeihilfen für 2. Jahr | F33: ='Tab6'!E45 -> 0 | G33: ='Tab6'!C26 -> 0 | H33: 0
B34: ~ Startbeihilfen für 3. Jahr | F34: ='Tab6'!E46 -> 0 | G34: ='Tab6'!C27 -> 0 | H34: 0 | L34: bewilligt | M34: ausgezahlt | N34: beantragt | O34: ausgezahlt + beantragt | P34: Anteil
B35: ~ Qualifizierungsmaßnahmen | F35: ='Tab6'!E47 -> 0 | G35: ='Tab6'!C28 -> 0 | H35: 0 | K35: GAK | L35: =F28 -> 0 | M35: =G28 -> 0 | N35: 0 | O35: =M35+N35 -> 0 | P35: =ROUNDUP((O35/L35),4) -> 
B36: Summe | F36: =SUM(F28:F35) -> 0 | G36: =SUM(G28:G35) -> 0 | H36: =SUM(H28:H35) -> 0 | K36: NGAK | L36: =F36-F28 -> 0 | M36: =G36-G28 -> 0 | N36: =H36-H28 -> 0 | O36: =M36+N36 -> 0 | P36: =ROUNDUP((O36/L36),4) -> 
B37: Insgesamt sind bisher inkl. heute vom bewilligten Betrag beantragt (GAK / ohne GAK): | H37: =IF(F28>0,(H28+G28)/F28,"-") -> - | I37: =IF(F36>F28,P36,"-") -> -
B38: Der beantragte Auszahlungsbetrag soll auf die für meine Unternehmernummer bei der Landwirtschaftskammer NRW registrierte Bankverbindung gezahlt werden.
D40: Identifikation des Antrages: | G40: Grundantrag-Jahr: | H40: ='Tab1'!C43 -> 1
G41: Grundantrag-Nr.: | H41: ='Tab1'!C42 -> 1
G42: Unternehmer-Nr.: | H42: ='Tab1'!D12 -> 
G43: Durchführungsjahr: | H43: ='Tab1'!C40 -> 1
B46: Ich/Wir bestätige/n, dass die Angaben im Antrag und im Investitionskonzept noch zutreffen und damit die Voraussetzungen für die Gewährung der Förderung gemäß den geltenden Richtlinien weiterhin erfüllt sind.
B49: Ich/Wir versicher(e)/n, dass gegen mich/uns in den letzten fünf Jahren weder eine Geldbuße von wenigstens 2.500 Euro nach § 404 Abs. 2 Nr. 3 des Dritten Buches Sozialgesetzbuch rechtskräftig verhängt, noch dass ich/wir rechtskräftig nach den §§ 10, 10a oder 11 des Schwarzarbeitsbekämpfungsgesetzes zu einer Freiheitsstrafe von mehr als drei Monaten oder einer Geldstrafe von mehr als 90 Tagessätzen verurteilt wurde/n.
B53: Im Verwendungsnachweis sind ausschließlich solche Ausgaben aufgeführt, die der Durchführung der in den Antragsunterlagen beschriebenen Maßnahmen zuzurechnen sind.
B55: Die mit dem Zuwendungsbescheid erlassenen Bestimmungen für die Auszahlung sind erfüllt.
C59: ='Tab6'!F25 &", " -> 0, | D59: ='Tab6'!F33 -> 00:00:00
C60: Ort, Datum | F60: Unterschrift des/r Antragstellers/in
C62: Anlagen:
C65: nur von der Kreisstelle auszufüllen
C66: Der Auszahlungsantrag wurde geprüft und zur Erfassung und Weiterverarbeitung freigegeben. Die festgestellten Beträge
C67: werden zur Auszahlung freigegeben.
C71: Ort, Datum | F71: Unterschrift der Bearbeiterin/ des Bearbeiters

Sheet Aufteilung (hidden)
C2: =VLOOKUP(C4,'Tab1'!$O$2:$P$18,2,0) -> GAK: Allg. Aufwand: Ingenieurl. | D2: =VLOOKUP(D4,'Tab1'!$O$2:$P$18,2,0) -> GAK: Allg. Aufw: Baunebenkosten | E2: =VLOOKUP(E4,'Tab1'!$O$2:$P$18,2,0) -> GAK: Allg. Aufwand: Architekt | F2: =VLOOKUP(F4,'Tab1'!$O$2:$P$18,2,0) ->  | G2: =VLOOKUP(G4,'Tab1'!$O$2:$P$18,2,0) ->  | H2: =VLOOKUP(H4,'Tab1'!$O$2:$P$18,2,0) ->  | I2: =VLOOKUP(I4,'Tab1'!$O$2:$P$18,2,0) ->  | J2: =VLOOKUP(J4,'Tab1'!$O$2:$P$18,2,0) ->  | K2: =VLOOKUP(K4,'Tab1'!$O$2:$P$18,2,0) ->  | L2: =VLOOKUP(L4,'Tab1'!$O$2:$P$18,2,0) ->  | M2: =VLOOKUP(M4,'Tab1'!$O$2:$P$18,2,0) ->  | N2: =VLOOKUP(N4,'Tab1'!$O$2:$P$18,2,0) ->  | P2: Total
C3: Gruppe
B4: Antr | C4: 32 | D4: 35 | E4: 31 | F4: Gesamtergebnis
B5: 1
B6: Gesamtergebnis
B15: Aufteilung der nachgewiesenen Kosten
C17: Antr
B18: Gruppe | C18: 1 | D18: Gesamtergebnis
B19: 32
B20: 35
B21: 31
B22: Gesamtergebnis
B34: Antr | C34: (Alle)
B37: Gruppe
B38: (Leer)
B39: Gesamtergebnis

Sheet Betreuer (hidden)
A1: AF08_BETREUER_NR | B1: AF08_NAME | C1: AF08_VORNAME | D1: AF08_STRASSE | E1: AF08_PLZ | F1: AF08_ORT | G1: AF08_TELEFON | H1: AF08_KRST_NR | I1: AF08_EMAIL
A2: 0 | B2: ohne Betreuer | H2: 499
A3: 60 | B3: BSt. Köln - Frau B. Biermann | C3: Birgit | D3: Gartenstr. 11 a | E3: 50765 | F3: Köln-Auweiler | G3: 0221/5340-108 | H3: 402 | I3: birgit.biermann@lwk.nrw.de
A4: 62 | B4: BSt.Steinfurt-Fr.Jürgensmeier | C4: Susanne | D4: Hembergener Str. 10 | E4: 48369 | F4: Saerbeck | G4: 02574/9277-26 | H4: 618 | I4: susanne.juergensmeier-lotz@lwk.nrw.de
A5: 61 | B5: BSt. Paderborn - Frau W. Kuck | C5: Walburga | D5: Bleichstr. 41 | E5: 33102 | F5: Paderborn | G5: 05251/1354-55 | H5: 613 | I5: walburga.kuck@lwk.nrw.de
A6: 65 | B6: agrar man GmbH-Frau Schonvogel | D6: Wiefelsteder Straße 171 | E6: 26316 | F6: Varel-Bramloge | G6: 04456/899870 | H6: 400 | I6: info@agrarman.de
A7: 64 | B7: BSt. Coesfeld - Frau Wettels | C7: Hanna | D7: Johann-Walling-Str. 45 | E7: 45325 | F7: Borken | G7: 02861-922 752 | H7: 601 | I7: hanna.wettels@lwk.nrw.de
A8: 63 | B8: BSt. Soest - Frau Thörner | C8: Karin | D8: Ostinghausen (Haus Düsse) | E8: 59505 | F8: Bad Sassendorf | G8: 02945-989 536 | H8: 617 | I8: karin.thoerner@lwk.nrw.de
A9: 50 | B9: LUB GmbH - Frau Bergmann | C9: Margret | D9: Waldenburger Straße 6 | E9: 48231 | F9: Warendorf | G9: 0 25 81 63 79-36 | H9: 619 | I9: Margret.Bergmann@lwk.nrw.de
A10: 37 | B10: LUB GmbH - Frau Biermann | C10: Dorothee | D10: Dünnefeldweg 13 | E10: 59872 | F10: Meschede | G10: 0291/991562 | H10: 606 | I10: Dorothee.Biermann@lwk.nrw.de
A11: 35 | B11: Telle | C11: Martin | D11: Timbergstrasse 51 | E11: 58513 | F11: Lüdenscheid | G11: 02351 14215 | H11: 499
A12: 34 | B12: Weifels | C12: Klaus | D12: Im Rottfeld 25 | E12: 41462 | F12: Neuss | G12: 02131/541296 | H12: 499 | I12: heinz.anette.weifels@t-online.de
A13: 33 | B13: Mews | C13: Klaus | D13: Gildehauser Weg 239 | E13: 48529 | F13: Nordhorn | G13: 05921/13120 | H13: 499 | I13: klaus.mews@t-online.de
A14: 32 | B14: Massier | C14: Hubert | D14: Asternweg 6 | E14: 41363 | F14: Jüchen | G14: 02182/5538 | H14: 499 | I14: h.massier@t-online.de
A15: 31 | B15: LUM - Herr Erkelenz | C15: Lutz | D15: Grünscheid 25 | E15: 42799 | F15: Leichlingen | G15: 02175 /166206 | H15: 499
A16: 30 | B16: LBB Brandenburg | C16: Ingenieurbüro Hottelmann und C | D16: Dorfstraße 18 | E16: 14476 | F16: Satzkorn | H16: 499
A17: 29 | B17: LUB GmbH - Herrn Schütte | C17: Stefan | D17: Johann-Walling-Str. 45 | E17: 46325 | F17: Borken | G17: 02861 9227-48 | H17: 601 | I17: stefan.schuette@lwk.nrw.de
A18: 28 | B18: LUB GmbH - Herrn Ostermann | C18: Gerhard | D18: Nevinghoff 40 | E18: 48147 | F18: Münster | G18: 0251/2376-406 | H18: 611 | I18: Gerhard.Ostermann@lwk.nrw.de
A19: 27 | B19: LUB GmbH - Herrn Siegenbrink | C19: Georg | D19: Bohlenweg 3 | E19: 33034 | F19: Brakel | G19: 05272 3701-223 | H19: 607 | I19: Georg.Siegenbrink@lwk.nrw.de
A20: 26 | B20: LUB GmbH - Frau Beaupoil | C20: Maria | D20: Elsenpaß 5 | E20: 47533 | F20: Kleve | G20: 02821/996208 | H20: 415 | I20: Maria.Beaupoil@lwk.nrw.de
A21: 25 | B21: LUB GmbH- Herr Müller-Rechmann | C21: Thomas | D21: Waldenburger Straße 6 | E21: 48231 | F21: Warendorf | G21: 02581/6379-32 | H21: 619
A22: 24 | B22: LUB GmbH - Herrn Nagelschmitz | C22: Andreas | D22: Gartenstraße 11 a | E22: 50765 | F22: Köln-Auweiler | G22: 0221/5340-118 | H22: 402
A23: 23 | B23: LUB GmbH - Frau Husmann | C23: Helga | D23: Borkener Straße 25 | E23: 48653 | F23: Coesfeld | G23: 02541/910-241 | H23: 602
A24: 22 | B24: LUB GmbH - Herrn Lauschner | C24: Olaf | D24: Platanenallee 56 | E24: 59425 | F24: Unna | G24: 02303/9616135 | H24: 615
A25: 21 | B25: LUB GmbH - Frau Chudalla | C25: Frietrud | D25: Gartenstraße 11 a | E25: 50765 | F25: Köln-Auweiler | G25: 0211/5340111 | H25: 402
A26: 20 | B26: LUB GmbH - Herr Boerman | C26: Jürgen | D26: Johann-Walling-Strasse 45 | E26: 46325 | F26: Borken | G26: 02861/922739 | H26: 601
A27: 19 | B27: LUB GmbH - Frau Braune | C27: Daniela
A28: 18 | B28: LUB GmbH - Herr Kühne | C28: Hans | D28: Nevinghoff 40 | E28: 48147 | F28: Münster | G28: 0251/2376-912 | H28: 611
A29: 17 | B29: LUB GmbH - Frau Willebrand | C29: Christiane | D29: Waldenburger Straße 6 | E29: 48231 | F29: Warendorf | G29: 02581/637934 | H29: 619 | I29: Christiane.Willebrand@lwk.nrw.de
A30: 16 | B30: LUB GmbH - Frau Gödde | C30: Kathrin | D30: Grebbecker Weg 3 | E30: 58509 | F30: Lüdenscheid | G30: 02351 969140 | H30: 609
A31: 15 | B31: LUB GmbH - Herrn Brunsiek | C31: Falk | D31: Bohlenweg 3 | E31: 33034 | F31: Brakel | G31: 05272/3701222 | H31: 607 | I31: Falk.Brunsiek@lwk.nrw.de
A32: 14 | B32: LUB Gmb - Herr Schulze Temming | C32: Bernhard | D32: Bohlenweg 3 | E32: 33034 | F32: Brakel | H32: 400
A33: 13 | B33: LUB GmbH - Frau Stelten | C33: Gerda | D33: Gereonstraße 80 | E33: 41747 | F33: Viersen | G33: 02162/370663 | H33: 416 | I33: Gerda.Stelten@lwk.nrw.de
A34: 12 | B34: LUB GmbH - Herr Sabbert | C34: Stefan | D34: Sedanplatz 9 | E34: 32791 | F34: Lage | G34: 05232/6082-75 | H34: 608
A35: 11 | B35: LUB GmbH - Herr Pohl | C35: Georg | D35: Rütger-von-Scheven Str. 44 | E35: 52349 | F35: Düren | G35: 02421/592318 | H35: 405
A36: 10 | B36: LUB GmbH - Herr U. Kalthoff | C36: Uwe | D36: Gartenstraße 11 a | E36: 50765 | F36: Köln-Auweiler | G36: 0221/5340119 | H36: 402
A37: 9 | B37: LUB GmbH - Herrn Kersting | C37: Josef | D37: Dünnefeldweg 12 | E37: 59872 | F37: Meschede | G37: 0291/9915-34 | H37: 606 | I37: Josef.Kersting@lwk.nrw.de
A38: 8 | B38: LUB GmbH - Herrn M. Hoffmann | C38: Marco | D38: Nevinghoff 40 | E38: 48147 | F38: Münster | G38: 0251 2376 861 | H38: 611 | I38: Marco.Hoffmann@lwk.nrw.de
A39: 7 | B39: LUB GmbH - Herrn B. Hoffmann | C39: Bernhard | D39: Elsenpaß 5 | E39: 47533 | F39: Kleve | G39: 02821/996208 | H39: 415 | I39: Berhard.Hoffmann@lwk.nrw.de
A40: 6 | B40: LUB GmbH - Herr Hoepfner | C40: Reinhard | D40: Grebbecker Weg 3 | E40: 58509 | F40: Lüdenscheid | G40: 02351/969145 | H40: 603
A41: 5 | B41: LUB GmbH - Herrn Fry | C41: Burkhard | D41: Nevinghoff 40 | E41: 48147 | F41: Münster | G41: 0251/2376-326 | H41: 499 | I41: Burkhard.Fry@lwk.nrw.de
A42: 4 | B42: LUB GmbH - Herr Enning | C42: Rudolf | D42: Hembergener Str. 10 | E42: 48369 | F42: Saerbeck | G42: 02574/927764 | H42: 618
A43: 3 | B43: LUB GmbH - Herr Deitermann | C43: Bernhard | D43: Bohlenweg 3 | E43: 33034 | F43: Brakel | G43: 05272/3701221 | H43: 607 | I43: Bernhard.Deitermann@lwk.nrw.de
A44: 2 | B44: LBB - Herrn Dreimann | C44: Wilhelm | D44: Wellentruper Str. 14 | E44: 33813 | F44: Oerlinghausen | G44: 0171/7280027 | I44: wilhelm@dreimann.net
A45: 1 | B45: GVAgrar West-Herrn Kemmerling | C45: Christian | D45: Buttenwall 17 | E45: 46325 | F45: Borken | G45: 02861/9027925 | H45: 400 | I45: gvagrar-westgvagrar.de

Sheet Updates (hidden)
B1: Version | C1: Ausgabe | D1: Datum Freigabe | E1: Nr. | F1: Änderungen
B2: 2 | C2: 1.10.08 | F2: Zahlreiche Änderungen nach Angabe von Frau Kloß (siehe Unterlagen)
F3: z.B. Löschen bestimmter Seiten, die nicht benötigt werden
F4: Aufnahme eines Verwendungszwecks zu allen Belegen
F5: Anpassung an neue Auslegung der ELER-Abrechnungsverordnung
F7: Realisierung des Einlesens aus Antragsdatei, z.b. Betriebsidentifikation und Fördermittel
F9: Überlegungen zu Einzeldarstellung für jeden Auszahlungsantrag
F11: Vorbereiten der Daten zum automatischen Auslesen
C13: 27.04.09 | F13: Fehler bei Löschen beseitigt
F14: Dialogwerte im Kostenplan nach Speichern auf 0 setzen
C16: 20.07.09 | D16: 2009-07-21 | F16: Sicherung und Schutzfunktionen überarbeitet
C18: 16.11.09 | F18: Überarbeitung gemäß Anforderung, Layout, Schutzfunktionen, Plausi Betrieb
B20: 3 | C20: 05.07.2010 | F20: Überarbeitung Formatierungen, Schutzkonzept bereinigt, Datenkonsistenz
C21: 07.10.2010 | D21: 2010-10-07 | F21: Übernahme der Daten in VS-Seiten korrigiert
C22: 24.05.2011 | F22: Korrektur von Fehlern und Übertragungsroutinen
C23: 18.01.2012 | D23: 2012-01-18 | F23: Korrektur von Fehlern, 12% Rundung; Textänderungen
C24: 18.04.2012 | F24: Korrektur Übertragungsfehler, Schutz von Zellen, Aktivierungsreihenfolge
F25: Blatt Aufteilung getrennt von anderen VNS-Seiten ausdruckbar gemacht
B27: 3b | C27: 30.08.2013 | F27: Blatt Aufteilung neu bearbeitet
F28: Wechsel des Auszahlungsantrages in Dialog eingebaut
F29: Genehmigung Vorzeitiger Beginn aufgenommen
C30: 05.09.2013 | F30: Überarbeitung Erfassungsdialog analog AFP
C31: 11.09.2013 | F31: Aufteilung Kontogruppen nach Auszahlungsanträgen (Tab7)
F32: Ergänzung Betreuernamen auf VNS2 und im Dialog
C34: 17.01.2018 | F34: Tab7 in der Funktion aus den Makros rausgenommen
F35: Überarbeitung der Texte in den Button von Tab0 über VisualBasic Formulare
F36: Hinweis: nur Tab2 ungeschützt
F37: Rechenhilfe Beleg zugefügt

Sheet Liste (hidden)
A2: 1 | B2: VE Höxter-Lippe-Paderborn | C2: Bohlenweg 3, 33034 Brakel
A3: 2 | B3: VE Rheinkreise | C3: Gartenstr. 11, 50765 Köln
A4: 3 | B4: VE Steinfurt | C4: Hembergener Straße 10, 48369 Saerbeck

Sheet transfer (hidden)
A1: 235689 | C1: Adressnummer | D1: =IF(ISTEXT(A1),"o.k","Fehler ") -> Fehler
A2: =AusAn!H17 -> 1 | C2: Nummer des Auszahlungsantrages | D2: =IF(ISNUMBER(A2),"o.k","Fehler ") -> o.k
A3: =AusAn!H41 -> 1 | C3: Nr. Grundantrag | D3: =IF(ISNUMBER(A3),"o.k","Fehler ") -> o.k
A4: =AusAn!#REF! ->  | C4: Jahr Grundantrag | D4: =IF(ISNUMBER(A4),"o.k","Fehler ") -> Fehler
A5: =AusAn!C3 ->  | C5: Name Antrag | D5: =IF(ISTEXT(A5),"o.k","Fehler ") -> o.k
A6: =AusAn!C4 -> 0 | C6: Anschrift Antrag | D6: =IF(ISTEXT(A6),"o.k","Fehler ") -> Fehler
A7: =AusAn!C5 ->  | C7: PLZ und Ort Antrag | D7: =IF(ISTEXT(A7),"o.k","Fehler ") -> o.k
A8: =AusAn!E14 -> 0 | C8: Kreisstelle | D8: =IF(ISTEXT(A8),"o.k","Fehler ") -> Fehler
A9: =AusAn!D18 -> 0 | C9: Aktenzeichen | D9: =IF(ISTEXT(A9),"o.k","Fehler ") -> Fehler
A10: =AusAn!G19 -> 00:00:00 | C10: Datum Verwendungsnachweis | D10: =IF(ISNUMBER(A10),"o.k","Fehler ") -> o.k
A11: =AusAn!H28 -> 0 | C11: beantragte Zahlung von Zuschuss GAK | D11: =IF(ISNUMBER(A11),"o.k","Fehler ") -> o.k | F11: ~ Investitionen nach GAK
A12: =AusAn!H29 -> 0 | C12: beantragte Zahlung für Organis,Konz,Beratg | D12: =IF(ISNUMBER(A12),"o.k","Fehler ") -> o.k | F12: ~ Organisation, Konzeption, Beratung
A13: =AusAn!H30 -> 0 | C13: beantragte Zahlung Einrichtung, Ausstattung | D13: o.k | F13: ~ Einrichtung und Ausstattung
A14: =AusAn!H31 -> 0 | C14: beantragte Zahlung Marketing; Sonstiges | D14: o.k | F14: ~ Marketing und Sonstiges
A15: =AusAn!H32 -> 0 | C15: beantragte Startbeihilfe 1. J. | D15: o.k | F15: ~ Startbeihilfen für 1. Jahr
A16: =AusAn!H33 -> 0 | C16: beantragte Startbeihilfe 2. J. | D16: o.k | F16: ~ Startbeihilfen für 2. Jahr
A17: =AusAn!H34 -> 0 | C17: beantragte Startbeihilfe 3. J. | D17: o.k | F17: ~ Startbeihilfen für 3. Jahr
A18: =AusAn!H35 -> 0 | C18: beantragte Zahlung Qulifizierung | D18: o.k | F18: ~ Qualifizierungsmaßnahmen
A19: =AusAn!I28 ->  | C19: festgestellte Zahlung von Zuschuss GAK | D19: Fehler
A20: =AusAn!I29 ->  | C20: festgestellte Zahlung für Organis,Konz,Beratg | D20: Fehler
A21: =AusAn!I30 ->  | C21: festgestellte Zahlung Einrichtung, Ausstattung | D21: Fehler
A22: =AusAn!I31 ->  | C22: festgestellte Zahlung Marketing; Sonstiges | D22: =IF(ISTEXT(A22),"o.k","Fehler ") -> o.k
A23: =AusAn!I32 ->  | C23: festgestellte Startbeihilfe 1. J. | D23: =IF(ISTEXT(A23),"o.k","Fehler ") -> o.k
A24: =AusAn!I33 ->  | C24: festgestellte Startbeihilfe 2. J. | D24: =IF(ISTEXT(A24),"o.k","Fehler ") -> o.k
A25: =AusAn!I34 ->  | C25: festgestellte Startbeihilfe 3. J. | D25: =IF(ISTEXT(A25),"o.k","Fehler ") -> o.k
A26: =AusAn!I35 ->  | C26: festgestellte Zahlung Qulifizierung | D26: =IF(ISNUMBER(A26),"o.k","Fehler ") -> Fehler
A27: ='VNS4'!I10 -> 0 | C27: nachgew. Ausgaben Errichtung (GAK) | D27: =IF(ISNUMBER(A27),"o.k","Fehler ") -> o.k | F27: Errichtung (GAK)
A28: ='VNS4'!I11 -> 0 | C28: nachgew. Ausgaben Masch. Anlagen | D28: o.k | F28: Maschinen, Anlagen (GAK)
A29: ='VNS4'!I12 -> 0 | C29: nachgew. Ausgaben Allg. Aufwand GAK | D29: o.k | F29: Allg. Aufwand (GAK)
A30: ='VNS4'!I13 -> 0 | C30: nachgew. Ausgaben Organisation | D30: o.k | F30: Organisation
A31: ='VNS4'!I14 -> 0 | C31: nachgew. Ausgaben 1.J. Löhne, Soz.Abg. | D31: o.k | F31: 1. J. Löhne, Sozialabg.
A32: ='VNS4'!I15 -> 0 | C32: nachgew. Ausgaben 2.J. Löhne, Soz.Abg. | D32: o.k | F32: 2. J. Löhne, Sozialabg.
A33: ='VNS4'!I16 -> 0 | C33: nachgew. Ausgaben 3.J. Löhne, Soz.Abg. | D33: o.k | F33: 3. J. Löhne, Sozialabg.
A34: ='VNS4'!I17 -> 0 | C34: nachgew. Ausgaben Einrichtung/Ausstattg | D34: o.k | F34: Einrichtg/Ausst - Sachausgaben
A35: ='VNS4'!I18 -> 0 | C35: nachgew. Ausgaben Marketing, Sonst. | D35: o.k | F35: Marketing, Sost. Sachausgaben
A36: ='VNS4'!I19 -> 0 | C36: nachgew. Ausgaben Qualifizierung | D36: =IF(ISNUMBER(A38),"o.k","Fehler ") -> o.k | F36: Qualifizierungsmaßnahmen
A37: ='VNS4'!I20 -> 0 | C37: sonstige nachgew. sonstige Ausgaben | D37: o.k | F37: Sonstiges
A38: ='VNS4'!I21 -> 0 | C38: nachgew. Ausgaben insgesamt | D38: =IF(ISNUMBER(#REF!),"o.k","Fehler ") -> Fehler
A39: ='VNS4'!I21-'VNS4'!F21 -> 0 | C39: Mehr oder Minderkosten | D39: o.k
A40: ='VNS4'!K9 -> 0 | C40: anerkannte Ausgaben Errichtung (GAK) | D40: o.k
A41: ='VNS4'!K10 -> 0 | C41: anerkannte Ausgaben Masch. Anlagen | D41: o.k
A42: ='VNS4'!K11 -> 0 | C42: anerkannte Ausgaben Allg. Aufwand GAK | D42: o.k
A43: ='VNS4'!K12 -> 0 | C43: anerkannte Ausgaben Organisation | D43: o.k
A44: ='VNS4'!K13 -> 0 | C44: anerkannte Ausgaben 1.J. Löhne, Soz.Abg. | D44: o.k
A45: ='VNS4'!K14 -> 0 | C45: anerkannte Ausgaben 2.J. Löhne, Soz.Abg. | D45: o.k
A46: ='VNS4'!K15 -> 0 | C46: anerkannte Ausgaben 3.J. Löhne, Soz.Abg. | D46: o.k
A47: ='VNS4'!K16 -> 0 | C47: anerkannte Ausgaben Einrichtung/Ausstattg | D47: o.k
A48: ='VNS4'!K17 -> 0 | C48: anerkannte Ausgaben Marketing, Sonst. | D48: o.k
A49: ='VNS4'!K19 -> 0 | C49: anerkannte Ausgaben Qualifizierung | D49: o.k
A50: ='VNS4'!K20 -> 0 | C50: sonstige anerkannte Ausgaben | D50: o.k
A51: ='VNS4'!K21 -> 0 | C51: sonstige anerkannte ff. Ausgaben | D51: o.k
A52: ='VNS4'!K22 -> 0 | C52: anerkannte Ausgaben insgesamt | D52: o.k
A53: 0 | C53: Ausgaben zur Steigerung der Wettbewerbskraft | D53: o.k
A54: 0 | C54: Ausgaben für besondere Anforderungen | D54: o.k
A55: 0 | C55: Ausgaben für Erschließung | D55: o.k
A56: 0 | C56: letzter Antrag Steigerung Wettbewerbsfähigkeit | D56: o.k
A57: 0 | C57: letzter Antrag Besondere Anforderungen Tierh. | D57: o.k
A58: 0 | C58: letzter Antrag Erschließung | D58: o.k
A59: Robert Müller-List
A60: 2013-09-11
A61: ='VNS2'!E46 -> ohne Betreuer | C61: aktueller Betreuer

Sheet Rechenhilfe Beleg
A1: Rechenhilfe Beleg | M1: Eingabefelder
A2: Rechnung (Nettobetrag) | C2: brutto | D2: 23800 | E2: =IF(D2>0,IF(B24<>D2," Vorsicht Rundungsdifferenz!",""), " Eingabe Bruttobetrag fehlt") -> 
A4: Position, Nr., etc | B4: gesamt | C4: nicht zuwendungsfähig netto | H4: zuwendungsfähig netto | P4: 0
G5: gesamt | L5: gesamt
A6: 1 | B6: =G6+L6 -> 5000 | E6: 3000 | F6: 2000 | G6: =SUM(C6:F6) -> 5000 | L6: =SUM(H6:K6) -> 0
A7: 2 | B7: 15000 | G7: =SUM(C7:F7) -> 0 | J7: 15000 | L7: =SUM(H7:K7) -> 15000
B8: 0 | G8: 0 | L8: 0
B9: 0 | G9: 0 | L9: 0
B10: 0 | G10: 0 | L10: 0
B11: 0 | G11: 0 | L11: 0
B12: 0 | G12: 0 | L12: 0
B13: 0 | G13: 0 | L13: 0
B14: 0 | G14: 0 | L14: 0
B15: 0 | G15: 0 | L15: 0
A16: gesamt | B16: =G16+L16 -> 20000 | C16: =SUM(C6:C15) -> 0 | D16: 0 | E16: 3000 | F16: 2000 | G16: 5000 | H16: 0 | I16: 0 | J16: 15000 | K16: 0 | L16: 15000
A18: Beleg-Nr.
A19: 7 | B19: gesamt | C19: nicht zuwendungsfähiger Anteil | H19: zuwendungsfähiger Anteil | P19: 0
G20: gesamt | L20: gesamt | P20: 7
A21: netto (alt) | B21: =G21+L21 -> 20000 | C21: =C16 -> 0 | D21: =D16 -> 0 | E21: =E16 -> 3000 | F21: =F16 -> 2000 | G21: =SUM(C21:F21) -> 5000 | H21: =H16 -> 0 | I21: =I16 -> 0 | J21: =J16 -> 15000 | K21: =K16 -> 0 | L21: =SUM(H21:K21) -> 15000 | P21: 19
A22: Ust-Satz in % | C22: 7 | D22: 7 | E22: 19 | F22: 19 | H22: 19 | I22: 7 | J22: 19 | K22: 19 | M22: Auswahlfelder
A23: Ust-Betrag | B23: =G23+L23 -> 3800 | C23: =ROUND((C21*C22/100),2) -> 0 | D23: =ROUND((D21*D22/100),2) -> 0 | E23: 570 | F23: =ROUND((F21*F22/100),2) -> 380 | G23: =SUM(C23:F23) -> 950 | H23: =ROUND((H21*H22/100),2) -> 0 | I23: =ROUND((I21*I22/100),2) -> 0 | J23: =ROUND((J21*J22/100),2) -> 2850 | K23: =ROUND((K21*K22/100),2) -> 0 | L23: =SUM(H23:K23) -> 2850
A24: brutto | B24: 23800 | C24: =C21+C23 -> 0 | D24: =D21+D23 -> 0 | E24: 3570 | F24: =F21+F23 -> 2380 | G24: 5950 | H24: 0 | I24: 0 | J24: 17850 | K24: =K21+K23 -> 0 | L24: 17850
A25: Skonto in % | C25: 2 | D25: 0 | E25: 2 | F25: 0 | H25: 2 | I25: 5 | J25: 2 | K25: 0
A26: Skonto-Betrag | B26: =G26+L26 -> 428.4 | C26: =ROUND((C24*C25/100),2) -> 0 | D26: =ROUND((D24*D25/100),2) -> 0 | E26: 71.4 | F26: =ROUND((F24*F25/100),2) -> 0 | G26: 71.4 | H26: 0 | I26: 0 | J26: 357 | K26: =ROUND((K24*K25/100),2) -> 0 | L26: 357 | M26: =IF(L26>0,"Überprüfen! Ist Skonto bei der Zahlung berücksichtigt worden?","") -> Überprüfen! Ist Skonto bei der Zahlung berücksichtigt worden?
A27: brutto ohne Skonto | B27: 23371.6 | C27: =C24-C26 -> 0 | D27: =D24-D26 -> 0 | E27: 3498.6 | F27: =F24-F26 -> 2380 | G27: 5878.6 | H27: 0 | I27: 0 | J27: 17493 | K27: =K24-K26 -> 0 | L27: 17493
A28: Ust-Satz in % | C28: =C22 -> 7 | D28: =D22 -> 7 | E28: 19 | F28: =F22 -> 19 | H28: 19 | I28: 7 | J28: 19 | K28: =K22 -> 19
A29: Ust-Betrag | B29: =G29+L29 -> 3731.6 | C29: =C27-C30 -> 0 | D29: =D27-D30 -> 0 | E29: 558.6 | F29: =F27-F30 -> 380 | G29: 938.6 | H29: 0 | I29: 0 | J29: 2793 | K29: =K27-K30 -> 0 | L29: 2793
A30: netto (neu) | B30: 19640 | C30: =ROUND((C27/(1+C28/100)),2) -> 0 | D30: =ROUND((D27/(1+D28/100)),2) -> 0 | E30: 2940 | F30: =ROUND((F27/(1+F28/100)),2) -> 2000 | G30: 4940 | H30: 0 | I30: 0 | J30: 14700 | K30: =ROUND((K27/(1+K28/100)),2) -> 0 | L30: 14700
A32: ab hier kann selbst gerechnet werden
